Workbook

Sheet Regnskap
A1: Sagene IF
A2: Avdelings og prosjektrapport
A3: Periode: | B3: ="202101" & " - " & "202107" -> 202101 - 202107
F5: Regnskap | I5: Budsjett | L5: Avvik/Rest | O5: Regnskap i fjor | R5: Endring
A6: Avdeling/Prosjekt | E6: Inntekter | F6: Kostnader | G6: Resultat | H6: Inntekter | I6: Kostnader | J6: Resultat | K6: Inntekter | L6: Kostnader | M6: Resultat | N6: Inntekter | O6: Kostnader | P6: Resultat | Q6: Inntekter | R6: Kostnader | S6: Resultat
A7: 1 | B7: Hoved | E7: =-1460562.93*-1 -> 1460562.93 | F7: 1881811.58 | G7: =E7-F7 -> -421248.65 | H7: 2091250 | I7: 1977118 | J7: =H7-I7 -> 114132 | K7: =H7-E7 -> 630687.07 | L7: 95306.42 | M7: =K7-L7 -> 535380.65 | N7: =-2231774.75*-1 -> 2231774.75 | O7: 1375259.21 | P7: =N7-O7 -> 856515.54 | Q7: =E7-N7 -> -771211.82 | R7: 506552.37 | S7: =Q7-R7 -> -1277764.19
E8: =0*-1 -> 0 | G8: 0 | J8: 0 | K8: =H8-E8 -> 0 | L8: 0 | M8: 0 | N8: =0*-1 -> 0 | O8: 0 | P8: 0 | Q8: =E8-N8 -> 0 | R8: 0 | S8: 0
E9: =0*-1 -> 0 | G9: 0 | J9: 0 | K9: =H9-E9 -> 0 | L9: 0 | M9: 0 | N9: =0*-1 -> 0 | O9: 0 | P9: 0 | Q9: =E9-N9 -> 0 | R9: 0 | S9: 0
A10: 0 | E10: =0*-1 -> 0 | F10: 42597.33 | G10: -42597.33 | J10: 0 | K10: =H10-E10 -> 0 | L10: -42597.33 | M10: 42597.33 | N10: =0*-1 -> 0 | P10: 0 | Q10: =E10-N10 -> 0 | R10: 42597.33 | S10: -42597.33
A11: 3024 | B11: Ung opptur | E11: =0*-1 -> 0 | G11: 0 | J11: 0 | K11: =H11-E11 -> 0 | L11: 0 | M11: 0 | N11: =0*-1 -> 0 | P11: 0 | Q11: =E11-N11 -> 0 | R11: 0 | S11: 0
A12: 5025 | B12: Administrasjonsassisten | E12: =0*-1 -> 0 | F12: 42597.33 | G12: -42597.33 | J12: 0 | K12: =H12-E12 -> 0 | L12: -42597.33 | M12: 42597.33 | N12: =0*-1 -> 0 | P12: 0 | Q12: =E12-N12 -> 0 | R12: 42597.33 | S12: -42597.33
A13: 1000 | B13: Aktivitet | E13: =-30000*-1 -> 30000 | F13: 86016.91 | G13: -56016.91 | H13: 300000 | I13: 308000 | J13: -8000 | K13: =H13-E13 -> 270000 | L13: 221983.09 | M13: 48016.91 | N13: =-450000*-1 -> 450000 | O13: 24462.59 | P13: 425537.41 | Q13: =E13-N13 -> -420000 | R13: 61554.32 | S13: -481554.32
A14: 1003 | B14: Tilskudd fond og stiftelser | E14: =0*-1 -> 0 | F14: 15523.75 | G14: -15523.75 | H14: 300000 | I14: 300000 | J14: 0 | K14: =H14-E14 -> 300000 | L14: 284476.25 | M14: 15523.75 | N14: =-250000*-1 -> 250000 | O14: 0 | P14: 250000 | Q14: =E14-N14 -> -250000 | R14: 15523.75 | S14: -265523.75
A15: 1006 | B15: Trenere lagene/gruppene | E15: =0*-1 -> 0 | F15: 2995.13 | G15: -2995.13 | J15: 0 | K15: =H15-E15 -> 0 | L15: -2995.13 | M15: 2995.13 | N15: =0*-1 -> 0 | O15: 6437.8 | P15: -6437.8 | Q15: =E15-N15 -> 0 | R15: -3442.67 | S15: 3442.67
A16: 1007 | B16: Utstyr lagene/ gruppene | E16: =0*-1 -> 0 | F16: 1212.8 | G16: -1212.8 | J16: 0 | K16: =H16-E16 -> 0 | L16: -1212.8 | M16: 1212.8 | N16: =0*-1 -> 0 | O16: 3053.92 | P16: -3053.92 | Q16: =E16-N16 -> 0 | R16: -1841.12 | S16: 1841.12
A17: 1012 | B17: Kontingenter/ medlemskap | E17: =0*-1 -> 0 | F17: 4934.44 | G17: -4934.44 | H17: 0 | I17: 8000 | J17: -8000 | K17: =H17-E17 -> 0 | L17: 3065.56 | M17: -3065.56 | N17: =0*-1 -> 0 | O17: 8001 | P17: -8001 | Q17: =E17-N17 -> 0 | R17: -3066.56 | S17: 3066.56
A18: 1019 | B18: Sosial aktivitet | E18: =0*-1 -> 0 | F18: 1930 | G18: -1930 | J18: 0 | K18: =H18-E18 -> 0 | L18: -1930 | M18: 1930 | N18: =0*-1 -> 0 | P18: 0 | Q18: =E18-N18 -> 0 | R18: 1930 | S18: -1930
A19: 1021 | B19: Nye idretter | E19: =-30000*-1 -> 30000 | F19: 56605.39 | G19: -26605.39 | J19: 0 | K19: =H19-E19 -> -30000 | L19: -56605.39 | M19: 26605.39 | N19: =-100000*-1 -> 100000 | O19: 6969.87 | P19: 93030.13 | Q19: =E19-N19 -> -70000 | R19: 49635.52 | S19: -119635.52
A20: 1022 | B20: Aktivitetsfondet | E20: =0*-1 -> 0 | F20: 2815.4 | G20: -2815.4 | J20: 0 | K20: =H20-E20 -> 0 | L20: -2815.4 | M20: 2815.4 | N20: =-100000*-1 -> 100000 | P20: 100000 | Q20: =E20-N20 -> -100000 | R20: 2815.4 | S20: -102815.4
A21: 2000 | B21: Kompetanse | E21: =0*-1 -> 0 | F21: 90559.55 | G21: -90559.55 | H21: 0 | I21: 64218 | J21: -64218 | K21: =H21-E21 -> 0 | L21: -26341.55 | M21: 26341.55 | N21: =0*-1 -> 0 | O21: 35947.64 | P21: -35947.64 | Q21: =E21-N21 -> 0 | R21: 54611.91 | S21: -54611.91
A22: 2001 | B22: Sportslig utvalg | E22: =0*-1 -> 0 | F22: 90559.55 | G22: -90559.55 | H22: 0 | I22: 64218 | J22: -64218 | K22: =H22-E22 -> 0 | L22: -26341.55 | M22: 26341.55 | N22: =0*-1 -> 0 | O22: 35947.64 | P22: -35947.64 | Q22: =E22-N22 -> 0 | R22: 54611.91 | S22: -54611.91
A23: 2004 | B23: Lederkurs | E23: =0*-1 -> 0 | G23: 0 | J23: 0 | K23: =H23-E23 -> 0 | L23: 0 | M23: 0 | N23: =0*-1 -> 0 | P23: 0 | Q23: =E23-N23 -> 0 | R23: 0 | S23: 0
A24: 3000 | B24: Arrangement | E24: =-152713*-1 -> 152713 | F24: 402927.37 | G24: -250214.37 | H24: 543000 | I24: 563645 | J24: -20645 | K24: =H24-E24 -> 390287 | L24: 160717.63 | M24: 229569.37 | N24: =-437690*-1 -> 437690 | O24: 134287.56 | P24: 303402.44 | Q24: =E24-N24 -> -284977 | R24: 268639.81 | S24: -553616.81
A25: 3002 | B25: Åpen dag | E25: =0*-1 -> 0 | F25: 44907.05 | G25: -44907.05 | H25: 50000 | I25: 43800 | J25: 6200 | K25: =H25-E25 -> 50000 | L25: -1107.05 | M25: 51107.05 | N25: =-50000*-1 -> 50000 | O25: 20122.33 | P25: 29877.67 | Q25: =E25-N25 -> -50000 | R25: 24784.72 | S25: -74784.72
A26: 3003 | B26: Skoleprosjektet | E26: =-1713*-1 -> 1713 | F26: 126821.43 | G26: -125108.43 | H26: 108000 | I26: 140000 | J26: -32000 | K26: =H26-E26 -> 106287 | L26: 13178.57 | M26: 93108.43 | N26: =-3217*-1 -> 3217 | O26: 33178.38 | P26: -29961.38 | Q26: =E26-N26 -> -1504 | R26: 93643.05 | S26: -95147.05
A27: 3004 | B27: Storbytiltak | E27: =-125000*-1 -> 125000 | F27: 12774.55 | G27: 112225.45 | H27: 35000 | I27: 38180 | J27: -3180 | K27: =H27-E27 -> -90000 | L27: 25405.45 | M27: -115405.45 | N27: =-35000*-1 -> 35000 | O27: 1022 | P27: 33978 | Q27: =E27-N27 -> 90000 | R27: 11752.55 | S27: 78247.45
A28: 3005 | B28: Norway cup | E28: =0*-1 -> 0 | G28: 0 | J28: 0 | K28: =H28-E28 -> 0 | L28: 0 | M28: 0 | N28: =15400*-1 -> -15400 | P28: -15400 | Q28: =E28-N28 -> 15400 | R28: 0 | S28: 15400
A29: 3013 | B29: Cup/ stevner/ ritt/ samlinger | E29: =-26000*-1 -> 26000 | F29: 25516 | G29: 484 | H29: 150000 | I29: 50000 | J29: 100000 | K29: =H29-E29 -> 124000 | L29: 24484 | M29: 99516 | N29: =0*-1 -> 0 | P29: 0 | Q29: =E29-N29 -> 26000 | R29: 25516 | S29: 484
A30: 3018 | B30: Etter skoletid (EST) | E30: =0*-1 -> 0 | F30: 0 | G30: 0 | H30: 200000 | I30: 291665 | J30: -91665 | K30: =H30-E30 -> 200000 | L30: 291665 | M30: -91665 | N30: =0*-1 -> 0 | O30: -8765 | P30: 8765 | Q30: =E30-N30 -> 0 | R30: 8765 | S30: -8765
A31: 3022 | B31: Stjernesommer | E31: =0*-1 -> 0 | F31: 109172.44 | G31: -109172.44 | J31: 0 | K31: =H31-E31 -> 0 | L31: -109172.44 | M31: 109172.44 | N31: =0*-1 -> 0 | O31: 86926.95 | P31: -86926.95 | Q31: =E31-N31 -> 0 | R31: 22245.49 | S31: -22245.49
A32: 3023 | B32: Bærekraftig Ungdomsarbeid | E32: =0*-1 -> 0 | F32: 83735.9 | G32: -83735.9 | J32: 0 | K32: =H32-E32 -> 0 | L32: -83735.9 | M32: 83735.9 | N32: =-364873*-1 -> 364873 | O32: 1802.9 | P32: 363070.1 | Q32: =E32-N32 -> -364873 | R32: 81933 | S32: -446806
A33: 4000 | B33: Anlegg | E33: =-78521*-1 -> 78521 | F33: 42657.09 | G33: 35863.91 | H33: 8000 | I33: 0 | J33: 8000 | K33: =H33-E33 -> -70521 | L33: -42657.09 | M33: -27863.91 | N33: =0*-1 -> 0 | O33: 35822.5 | P33: -35822.5 | Q33: =E33-N33 -> 78521 | R33: 6834.59 | S33: 71686.41
A34: 4003 | B34: Kiosk | E34: =0*-1 -> 0 | G34: 0 | J34: 0 | K34: =H34-E34 -> 0 | L34: 0 | M34: 0 | N34: =0*-1 -> 0 | O34: 0 | P34: 0 | Q34: =E34-N34 -> 0 | R34: 0 | S34: 0
A35: 4004 | B35: Bjølsenhallen | E35: =-78521*-1 -> 78521 | F35: 11903.78 | G35: 66617.22 | H35: 125000 | I35: 0 | J35: 125000 | K35: =H35-E35 -> 46479 | L35: -11903.78 | M35: 58382.78 | N35: =0*-1 -> 0 | O35: 9347.94 | P35: -9347.94 | Q35: =E35-N35 -> 78521 | R35: 2555.84 | S35: 75965.16
A36: 4013 | B36: Klubbhuset | E36: =0*-1 -> 0 | F36: 30753.31 | G36: -30753.31 | J36: 0 | K36: =H36-E36 -> 0 | L36: -30753.31 | M36: 30753.31 | N36: =0*-1 -> 0 | O36: 26474.56 | P36: -26474.56 | Q36: =E36-N36 -> 0 | R36: 4278.75 | S36: -4278.75
A37: 4014 | B37: Tilskudd driftsavdelingen | E37: =0*-1 -> 0 | G37: 0 | H37: -117000 | I37: 0 | J37: -117000 | K37: =H37-E37 -> -117000 | L37: 0 | M37: -117000 | N37: =0*-1 -> 0 | P37: 0 | Q37: =E37-N37 -> 0 | R37: 0 | S37: 0
A38: 4016 | B38: Svermen | E38: =0*-1 -> 0 | G38: 0 | J38: 0 | K38: =H38-E38 -> 0 | L38: 0 | M38: 0 | N38: =0*-1 -> 0 | O38: 0 | P38: 0 | Q38: =E38-N38 -> 0 | R38: 0 | S38: 0
A39: 5000 | B39: Administrasjon | E39: =-1199328.93*-1 -> 1199328.93 | F39: 1217053.33 | G39: -17724.4 | H39: 1240250 | I39: 1041255 | J39: 198995 | K39: =H39-E39 -> 40921.07 | L39: -175798.33 | M39: 216719.4 | N39: =-1344084.75*-1 -> 1344084.75 | O39: 1144738.92 | P39: 199345.83 | Q39: =E39-N39 -> -144755.82 | R39: 72314.41 | S39: -217070.23
A40: 5001 | B40: Medlemsavgift | E40: =-406465.3*-1 -> 406465.3 | F40: 12113.31 | G40: 394351.99 | H40: 500000 | I40: 0 | J40: 500000 | K40: =H40-E40 -> 93534.7 | L40: -12113.31 | M40: 105648.01 | N40: =-444068.75*-1 -> 444068.75 | O40: 12033.57 | P40: 432035.18 | Q40: =E40-N40 -> -37603.45 | R40: 79.74 | S40: -37683.19
A41: 5002 | B41: Tilskudd Oslo kommune | E41: =-431250*-1 -> 431250 | G41: 431250 | H41: 431250 | I41: 0 | J41: 431250 | K41: =H41-E41 -> 0 | L41: 0 | M41: 0 | N41: =-382750*-1 -> 382750 | P41: 382750 | Q41: =E41-N41 -> 48500 | R41: 0 | S41: 48500
A42: 5004 | B42: Tilskudd bydel Sagene | E42: =-175000*-1 -> 175000 | G42: 175000 | H42: 175000 | I42: 0 | J42: 175000 | K42: =H42-E42 -> 0 | L42: 0 | M42: 0 | N42: =-175000*-1 -> 175000 | P42: 175000 | Q42: =E42-N42 -> 0 | R42: 0 | S42: 0
A43: 5005 | B43: Grasrotmidler | E43: =-173413.63*-1 -> 173413.63 | G43: 173413.63 | H43: 124000 | I43: 0 | J43: 124000 | K43: =H43-E43 -> -49413.63 | L43: 0 | M43: -49413.63 | N43: =-119266*-1 -> 119266 | P43: 119266 | Q43: =E43-N43 -> 54147.63 | R43: 0 | S43: 54147.63
A44: 5006 | B44: Momskompensasjon | E44: =0*-1 -> 0 | G44: 0 | J44: 0 | K44: =H44-E44 -> 0 | L44: 0 | M44: 0 | N44: =0*-1 -> 0 | P44: 0 | Q44: =E44-N44 -> 0 | R44: 0 | S44: 0
A45: 5007 | B45: Supporterklubb | E45: =-1200*-1 -> 1200 | F45: 21 | G45: 1179 | J45: 0 | K45: =H45-E45 -> -1200 | L45: -21 | M45: -1179 | N45: =-17000*-1 -> 17000 | O45: 2040.14 | P45: 14959.86 | Q45: =E45-N45 -> -15800 | R45: -2019.14 | S45: -13780.86
A46: 5008 | B46: Daglig leder | E46: =0*-1 -> 0 | F46: 358219.26 | G46: -358219.26 | H46: 0 | I46: 379165 | J46: -379165 | K46: =H46-E46 -> 0 | L46: 20945.74 | M46: -20945.74 | N46: =0*-1 -> 0 | O46: 374672.81 | P46: -374672.81 | Q46: =E46-N46 -> 0 | R46: -16453.55 | S46: 16453.55
A47: 5009 | B47: Drift av kontoret | E47: =-12000*-1 -> 12000 | F47: 105035.93 | G47: -93035.93 | H47: 10000 | I47: 110340 | J47: -100340 | K47: =H47-E47 -> -2000 | L47: 5304.07 | M47: -7304.07 | N47: =-6000*-1 -> 6000 | O47: 96507.84 | P47: -90507.84 | Q47: =E47-N47 -> 6000 | R47: 8528.09 | S47: -2528.09
A48: 5010 | B48: IT | E48: =0*-1 -> 0 | F48: 174525.51 | G48: -174525.51 | H48: 0 | I48: 194500 | J48: -194500 | K48: =H48-E48 -> 0 | L48: 19974.49 | M48: -19974.49 | N48: =0*-1 -> 0 | O48: 147789.43 | P48: -147789.43 | Q48: =E48-N48 -> 0 | R48: 26736.08 | S48: -26736.08
A49: 5011 | B49: Markedsføring | E49: =0*-1 -> 0 | F49: 272741.95 | G49: -272741.95 | H49: 0 | I49: 28000 | J49: -28000 | K49: =H49-E49 -> 0 | L49: -244741.95 | M49: 244741.95 | N49: =-200000*-1 -> 200000 | O49: 153053.1 | P49: 46946.9 | Q49: =E49-N49 -> -200000 | R49: 119688.85 | S49: -319688.85
A50: 5012 | B50: Møte og representasjon | E50: =0*-1 -> 0 | F50: 7602.74 | G50: -7602.74 | J50: 0 | K50: =H50-E50 -> 0 | L50: -7602.74 | M50: 7602.74 | N50: =0*-1 -> 0 | O50: 19219 | P50: -19219 | Q50: =E50-N50 -> 0 | R50: -11616.26 | S50: 11616.26
A51: 5013 | B51: Regnskap | E51: =0*-1 -> 0 | F51: 141816 | G51: -141816 | H51: 0 | I51: 140000 | J51: -140000 | K51: =H51-E51 -> 0 | L51: -1816 | M51: 1816 | N51: =0*-1 -> 0 | O51: 157161 | P51: -157161 | Q51: =E51-N51 -> 0 | R51: -15345 | S51: 15345
A52: 5014 | B52: Revisjon | E52: =0*-1 -> 0 | G52: 0 | H52: 0 | I52: 50000 | J52: -50000 | K52: =H52-E52 -> 0 | L52: 50000 | M52: -50000 | N52: =0*-1 -> 0 | O52: 52375 | P52: -52375 | Q52: =E52-N52 -> 0 | R52: -52375 | S52: 52375
A53: 5016 | B53: Forsikringer | E53: =0*-1 -> 0 | F53: 20452.94 | G53: -20452.94 | H53: 0 | I53: 32000 | J53: -32000 | K53: =H53-E53 -> 0 | L53: 11547.06 | M53: -11547.06 | N53: =0*-1 -> 0 | O53: 17226.22 | P53: -17226.22 | Q53: =E53-N53 -> 0 | R53: 3226.72 | S53: -3226.72
A54: 5017 | B54: Kontanthåndtering | E54: =0*-1 -> 0 | F54: 5999.39 | G54: -5999.39 | H54: 0 | I54: 5750 | J54: -5750 | K54: =H54-E54 -> 0 | L54: -249.39 | M54: 249.39 | N54: =0*-1 -> 0 | O54: 6751.36 | P54: -6751.36 | Q54: =E54-N54 -> 0 | R54: -751.97 | S54: 751.97
A55: 5018 | B55: Betalingsløsninger | E55: =0*-1 -> 0 | F55: 17269.3 | G55: -17269.3 | H55: 0 | I55: 21000 | J55: -21000 | K55: =H55-E55 -> 0 | L55: 3730.7 | M55: -3730.7 | N55: =0*-1 -> 0 | O55: 24709.84 | P55: -24709.84 | Q55: =E55-N55 -> 0 | R55: -7440.54 | S55: 7440.54
A56: 5019 | B56: Pensjonsforsikring | E56: =0*-1 -> 0 | F56: 101256 | G56: -101256 | H56: 0 | I56: 80500 | J56: -80500 | K56: =H56-E56 -> 0 | L56: -20756 | M56: 20756 | N56: =0*-1 -> 0 | O56: 81148 | P56: -81148 | Q56: =E56-N56 -> 0 | R56: 20108 | S56: -20108
A57: 5021 | B57: Driftsleder | E57: =0*-1 -> 0 | G57: 0 | J57: 0 | K57: =H57-E57 -> 0 | L57: 0 | M57: 0 | N57: =0*-1 -> 0 | O57: 51.61 | P57: -51.61 | Q57: =E57-N57 -> 0 | R57: -51.61 | S57: 51.61
A58: 2 | B58: Innebandy Klubb | E58: =-204185*-1 -> 204185 | F58: 56477.2 | G58: 147707.8 | H58: 36800 | I58: 46588.171 | J58: -9788.171 | K58: =H58-E58 -> -167385 | L58: -9889.029 | M58: -157495.971 | N58: =-299305.9*-1 -> 299305.9 | O58: 120437.78 | P58: 178868.12 | Q58: =E58-N58 -> -95120.9 | R58: -63960.58 | S58: -31160.32
A59: 1000 | B59: Aktivitet | E59: =0*-1 -> 0 | F59: 833.33 | G59: -833.33 | J59: 0 | K59: =H59-E59 -> 0 | L59: -833.33 | M59: 833.33 | N59: =-25870*-1 -> 25870 | O59: 41767.31 | P59: -15897.31 | Q59: =E59-N59 -> -25870 | R59: -40933.98 | S59: 15063.98
A60: 1007 | B60: Utstyr lagene/ gruppene | E60: =0*-1 -> 0 | G60: 0 | J60: 0 | K60: =H60-E60 -> 0 | L60: 0 | M60: 0 | N60: =-25870*-1 -> 25870 | O60: 8633.31 | P60: 17236.69 | Q60: =E60-N60 -> -25870 | R60: -8633.31 | S60: -17236.69
A61: 1012 | B61: Kontingenter/ medlemskap | E61: =0*-1 -> 0 | F61: 833.33 | G61: -833.33 | J61: 0 | K61: =H61-E61 -> 0 | L61: -833.33 | M61: 833.33 | N61: =0*-1 -> 0 | O61: 684 | P61: -684 | Q61: =E61-N61 -> 0 | R61: 149.33 | S61: -149.33
A62: 1016 | B62: Dommere | E62: =0*-1 -> 0 | G62: 0 | J62: 0 | K62: =H62-E62 -> 0 | L62: 0 | M62: 0 | N62: =0*-1 -> 0 | O62: 32450 | P62: -32450 | Q62: =E62-N62 -> 0 | R62: -32450 | S62: 32450
A63: 3000 | B63: Arrangement | E63: =0*-1 -> 0 | G63: 0 | H63: 18000 | I63: 0 | J63: 18000 | K63: =H63-E63 -> 18000 | L63: 0 | M63: 18000 | N63: =-2700*-1 -> 2700 | P63: 2700 | Q63: =E63-N63 -> -2700 | R63: 0 | S63: -2700
A64: 3009 | B64: Elitekamper innebandy | E64: =0*-1 -> 0 | G64: 0 | J64: 0 | K64: =H64-E64 -> 0 | L64: 0 | M64: 0 | N64: =-2700*-1 -> 2700 | P64: 2700 | Q64: =E64-N64 -> -2700 | R64: 0 | S64: -2700
A65: 3013 | B65: Cup/ stevner/ ritt/ samlinger | E65: =0*-1 -> 0 | G65: 0 | J65: 0 | K65: =H65-E65 -> 0 | L65: 0 | M65: 0 | N65: =0*-1 -> 0 | P65: 0 | Q65: =E65-N65 -> 0 | R65: 0 | S65: 0
A66: 3015 | B66: Oslo sommertid | E66: =0*-1 -> 0 | G66: 0 | H66: 18000 | I66: 0 | J66: 18000 | K66: =H66-E66 -> 18000 | L66: 0 | M66: 18000 | N66: =0*-1 -> 0 | P66: 0 | Q66: =E66-N66 -> 0 | R66: 0 | S66: 0
A67: 4000 | B67: Anlegg | E67: =-204185*-1 -> 204185 | F67: 55535.72 | G67: 148649.28 | H67: 18800 | I67: 0 | J67: 18800 | K67: =H67-E67 -> -185385 | L67: -55535.72 | M67: -129849.28 | N67: =-270735.9*-1 -> 270735.9 | O67: 78306.97 | P67: 192428.93 | Q67: =E67-N67 -> -66550.9 | R67: -22771.25 | S67: -43779.65
A68: 4003 | B68: Kiosk | E68: =-25879*-1 -> 25879 | F68: 3767.16 | G68: 22111.84 | H68: 6000 | I68: 0 | J68: 6000 | K68: =H68-E68 -> -19879 | L68: -3767.16 | M68: -16111.84 | N68: =-116778.9*-1 -> 116778.9 | O68: 65658.73 | P68: 51120.17 | Q68: =E68-N68 -> -90899.9 | R68: -61891.57 | S68: -29008.33
A69: 4004 | B69: Bjølsenhallen | E69: =-178306*-1 -> 178306 | F69: 51768.56 | G69: 126537.44 | H69: 158000 | I69: 0 | J69: 158000 | K69: =H69-E69 -> -20306 | L69: -51768.56 | M69: 31462.56 | N69: =-153957*-1 -> 153957 | O69: 12648.24 | P69: 141308.76 | Q69: =E69-N69 -> 24349 | R69: 39120.32 | S69: -14771.32
A70: 4014 | B70: Tilskudd driftsavdelingen | E70: =0*-1 -> 0 | G70: 0 | H70: -145200 | I70: 0 | J70: -145200 | K70: =H70-E70 -> -145200 | L70: 0 | M70: -145200 | N70: =0*-1 -> 0 | P70: 0 | Q70: =E70-N70 -> 0 | R70: 0 | S70: 0
A71: 5000 | B71: Administrasjon | E71: =0*-1 -> 0 | F71: 108.15 | G71: -108.15 | H71: 0 | I71: 46588.171 | J71: -46588.171 | K71: =H71-E71 -> 0 | L71: 46480.021 | M71: -46480.021 | N71: =0*-1 -> 0 | O71: 363.5 | P71: -363.5 | Q71: =E71-N71 -> 0 | R71: -255.35 | S71: 255.35
A72: 5007 | B72: Supporterklubb | E72: =0*-1 -> 0 | G72: 0 | J72: 0 | K72: =H72-E72 -> 0 | L72: 0 | M72: 0 | N72: =0*-1 -> 0 | P72: 0 | Q72: =E72-N72 -> 0 | R72: 0 | S72: 0
A73: 5011 | B73: Markedsføring | E73: =0*-1 -> 0 | G73: 0 | J73: 0 | K73: =H73-E73 -> 0 | L73: 0 | M73: 0 | N73: =0*-1 -> 0 | O73: -16.5 | P73: 16.5 | Q73: =E73-N73 -> 0 | R73: 16.5 | S73: -16.5
A74: 5012 | B74: Møte og representasjon | E74: =0*-1 -> 0 | G74: 0 | J74: 0 | K74: =H74-E74 -> 0 | L74: 0 | M74: 0 | N74: =0*-1 -> 0 | O74: 95 | P74: -95 | Q74: =E74-N74 -> 0 | R74: -95 | S74: 95
A75: 5018 | B75: Betalingsløsninger | E75: =0*-1 -> 0 | F75: 108.15 | G75: -108.15 | J75: 0 | K75: =H75-E75 -> 0 | L75: -108.15 | M75: 108.15 | N75: =0*-1 -> 0 | O75: 285 | P75: -285 | Q75: =E75-N75 -> 0 | R75: -176.85 | S75: 176.85
A76: 5022 | B76: Driftspersonell fast | E76: =0*-1 -> 0 | G76: 0 | H76: 0 | I76: 46588.171 | J76: -46588.171 | K76: =H76-E76 -> 0 | L76: 46588.171 | M76: -46588.171 | N76: =0*-1 -> 0 | P76: 0 | Q76: =E76-N76 -> 0 | R76: 0 | S76: 0
A77: 3 | B77: Fotball Klubb | E77: =-114741.12*-1 -> 114741.12 | F77: 148014.4 | G77: -33273.28 | H77: 278126 | I77: 291391.6667 | J77: -13265.66667 | K77: =H77-E77 -> 163384.88 | L77: 143377.2667 | M77: 20007.61333 | N77: =-323826*-1 -> 323826 | O77: 137375.52 | P77: 186450.48 | Q77: =E77-N77 -> -209084.88 | R77: 10638.88 | S77: -219723.76
A78: 1000 | B78: Aktivitet | E78: =50166*-1 -> -50166 | F78: 27087.59 | G78: -77253.59 | H78: 8400 | I78: 52150 | J78: -43750 | K78: =H78-E78 -> 58566 | L78: 25062.41 | M78: 33503.59 | N78: =94308*-1 -> -94308 | O78: 33086.05 | P78: -127394.05 | Q78: =E78-N78 -> 44142 | R78: -5998.46 | S78: 50140.46
A79: 1001 | B79: Treningsavgift | E79: =0*-1 -> 0 | G79: 0 | J79: 0 | K79: =H79-E79 -> 0 | L79: 0 | M79: 0 | N79: =0*-1 -> 0 | O79: 38.58 | P79: -38.58 | Q79: =E79-N79 -> 0 | R79: -38.58 | S79: 38.58
A80: 1004 | B80: Sponsorer | E80: =77362*-1 -> -77362 | G80: -77362 | J80: 0 | K80: =H80-E80 -> 77362 | L80: 0 | M80: 77362 | N80: =97908*-1 -> -97908 | P80: -97908 | Q80: =E80-N80 -> 20546 | R80: 0 | S80: 20546
A81: 1007 | B81: Utstyr lagene/ gruppene | E81: =0*-1 -> 0 | F81: 98.63 | G81: -98.63 | J81: 0 | K81: =H81-E81 -> 0 | L81: -98.63 | M81: 98.63 | N81: =0*-1 -> 0 | O81: 1968.55 | P81: -1968.55 | Q81: =E81-N81 -> 0 | R81: -1869.92 | S81: 1869.92
A82: 1009 | B82: Utstyr dommere | E82: =0*-1 -> 0 | F82: 2000 | G82: -2000 | H82: 0 | I82: 20000 | J82: -20000 | K82: =H82-E82 -> 0 | L82: 18000 | M82: -18000 | N82: =0*-1 -> 0 | P82: 0 | Q82: =E82-N82 -> 0 | R82: 2000 | S82: -2000
A83: 1010 | B83: Serieavgifter, lagavgifter | E83: =0*-1 -> 0 | G83: 0 | J83: 0 | K83: =H83-E83 -> 0 | L83: 0 | M83: 0 | N83: =0*-1 -> 0 | O83: 6000 | P83: -6000 | Q83: =E83-N83 -> 0 | R83: -6000 | S83: 6000
A84: 1012 | B84: Kontingenter/ medlemskap | E84: =0*-1 -> 0 | F84: 15000 | G84: -15000 | H84: 0 | I84: 15000 | J84: -15000 | K84: =H84-E84 -> 0 | L84: 0 | M84: 0 | N84: =0*-1 -> 0 | O84: 15000 | P84: -15000 | Q84: =E84-N84 -> 0 | R84: 0 | S84: 0
A85: 1013 | B85: Overganger | E85: =-27196*-1 -> 27196 | F85: 1238.96 | G85: 25957.04 | H85: 8400 | I85: 8400 | J85: 0 | K85: =H85-E85 -> -18796 | L85: 7161.04 | M85: -25957.04 | N85: =-3600*-1 -> 3600 | O85: 9828.92 | P85: -6228.92 | Q85: =E85-N85 -> 23596 | R85: -8589.96 | S85: 32185.96
A86: 1016 | B86: Dommere | E86: =0*-1 -> 0 | G86: 0 | J86: 0 | K86: =H86-E86 -> 0 | L86: 0 | M86: 0 | N86: =0*-1 -> 0 | O86: 250 | P86: -250 | Q86: =E86-N86 -> 0 | R86: -250 | S86: 250
A87: 1019 | B87: Sosial aktivitet | E87: =0*-1 -> 0 | G87: 0 | H87: 0 | I87: 2916.666669 | J87: -2916.666669 | K87: =H87-E87 -> 0 | L87: 2916.666669 | M87: -2916.666669 | N87: =0*-1 -> 0 | P87: 0 | Q87: =E87-N87 -> 0 | R87: 0 | S87: 0
A88: 1020 | B88: Premier og gaver | E88: =0*-1 -> 0 | F88: 8750 | G88: -8750 | H88: 0 | I88: 5833.333331 | J88: -5833.333331 | K88: =H88-E88 -> 0 | L88: -2916.666669 | M88: 2916.666669 | N88: =0*-1 -> 0 | P88: 0 | Q88: =E88-N88 -> 0 | R88: 8750 | S88: -8750
A89: 2000 | B89: Kompetanse | E89: =0*-1 -> 0 | F89: 84757.06 | G89: -84757.06 | H89: 0 | I89: 136325 | J89: -136325 | K89: =H89-E89 -> 0 | L89: 51567.94 | M89: -51567.94 | N89: =-251500*-1 -> 251500 | O89: 90371.47 | P89: 161128.53 | Q89: =E89-N89 -> -251500 | R89: -5614.41 | S89: -245885.59
A90: 2001 | B90: Sportslig utvalg | E90: =0*-1 -> 0 | F90: 42849.06 | G90: -42849.06 | H90: 0 | I90: 136325 | J90: -136325 | K90: =H90-E90 -> 0 | L90: 93475.94 | M90: -93475.94 | N90: =-250000*-1 -> 250000 | O90: 57126.47 | P90: 192873.53 | Q90: =E90-N90 -> -250000 | R90: -14277.41 | S90: -235722.59
A91: 2004 | B91: Lederkurs | E91: =0*-1 -> 0 | F91: 4000 | G91: -4000 | J91: 0 | K91: =H91-E91 -> 0 | L91: -4000 | M91: 4000 | N91: =-1500*-1 -> 1500 | P91: 1500 | Q91: =E91-N91 -> -1500 | R91: 4000 | S91: -5500
A92: 2005 | B92: Trenerkurs | E92: =0*-1 -> 0 | F92: 24308 | G92: -24308 | J92: 0 | K92: =H92-E92 -> 0 | L92: -24308 | M92: 24308 | N92: =0*-1 -> 0 | O92: 26145 | P92: -26145 | Q92: =E92-N92 -> 0 | R92: -1837 | S92: 1837
A93: 2006 | B93: Dommerkurs | E93: =0*-1 -> 0 | F93: 13600 | G93: -13600 | J93: 0 | K93: =H93-E93 -> 0 | L93: -13600 | M93: 13600 | N93: =0*-1 -> 0 | O93: 7100 | P93: -7100 | Q93: =E93-N93 -> 0 | R93: 6500 | S93: -6500
A94: 3000 | B94: Arrangement | E94: =-56048.12*-1 -> 56048.12 | F94: 22481.26 | G94: 33566.86 | H94: 290000 | I94: 100000 | J94: 190000 | K94: =H94-E94 -> 233951.88 | L94: 77518.74 | M94: 156433.14 | N94: =0*-1 -> 0 | P94: 0 | Q94: =E94-N94 -> 56048.12 | R94: 22481.26 | S94: 33566.86
A95: 3006 | B95: Tine- fotballskole | E95: =0*-1 -> 0 | G95: 0 | H95: 150000 | I95: 100000 | J95: 50000 | K95: =H95-E95 -> 150000 | L95: 100000 | M95: 50000 | N95: =0*-1 -> 0 | P95: 0 | Q95: =E95-N95 -> 0 | R95: 0 | S95: 0
A96: 3013 | B96: Cup/ stevner/ ritt/ samlinger | E96: =-22648.12*-1 -> 22648.12 | F96: 22481.26 | G96: 166.86 | J96: 0 | K96: =H96-E96 -> -22648.12 | L96: -22481.26 | M96: -166.86 | N96: =0*-1 -> 0 | P96: 0 | Q96: =E96-N96 -> 22648.12 | R96: 22481.26 | S96: 166.86
A97: 3015 | B97: Oslo sommertid | E97: =0*-1 -> 0 | G97: 0 | H97: 140000 | I97: 0 | J97: 140000 | K97: =H97-E97 -> 140000 | L97: 0 | M97: 140000 | N97: =0*-1 -> 0 | P97: 0 | Q97: =E97-N97 -> 0 | R97: 0 | S97: 0
A98: 3019 | B98: Fotballfritidsordningen (FFO) | E98: =-33400*-1 -> 33400 | G98: 33400 | J98: 0 | K98: =H98-E98 -> -33400 | L98: 0 | M98: -33400 | N98: =0*-1 -> 0 | P98: 0 | Q98: =E98-N98 -> 33400 | R98: 0 | S98: 33400
A99: 4000 | B99: Anlegg | E99: =-108859*-1 -> 108859 | F99: 12888.49 | G99: 95970.51 | H99: -20274 | I99: 0 | J99: -20274 | K99: =H99-E99 -> -129133 | L99: -12888.49 | M99: -116244.51 | N99: =-164634*-1 -> 164634 | O99: 12499 | P99: 152135 | Q99: =E99-N99 -> -55775 | R99: 389.49 | S99: -56164.49
A100: 4003 | B100: Kiosk | E100: =0*-1 -> 0 | F100: 0 | G100: 0 | J100: 0 | K100: =H100-E100 -> 0 | L100: 0 | M100: 0 | N100: =0*-1 -> 0 | P100: 0 | Q100: =E100-N100 -> 0 | R100: 0 | S100: 0
A101: 4005 | B101: Voldsløkka garderober | E101: =0*-1 -> 0 | G101: 0 | J101: 0 | K101: =H101-E101 -> 0 | L101: 0 | M101: 0 | N101: =0*-1 -> 0 | P101: 0 | Q101: =E101-N101 -> 0 | R101: 0 | S101: 0
A102: 4006 | B102: Bjølsen kunstgress vinter | E102: =-99500*-1 -> 99500 | F102: 12888.49 | G102: 86611.51 | H102: 180000 | I102: 0 | J102: 180000 | K102: =H102-E102 -> 80500 | L102: -12888.49 | M102: 93388.49 | N102: =-158550*-1 -> 158550 | O102: 12513.65 | P102: 146036.35 | Q102: =E102-N102 -> -59050 | R102: 374.84 | S102: -59424.84
A103: 4007 | B103: Bjølsen kunstgress sommer | E103: =-9359*-1 -> 9359 | G103: 9359 | H103: 9126 | I103: 0 | J103: 9126 | K103: =H103-E103 -> -233 | L103: 0 | M103: -233 | N103: =-6084*-1 -> 6084 | P103: 6084 | Q103: =E103-N103 -> 3275 | R103: 0 | S103: 3275
A104: 4013 | B104: Klubbhuset | E104: =0*-1 -> 0 | G104: 0 | J104: 0 | K104: =H104-E104 -> 0 | L104: 0 | M104: 0 | N104: =0*-1 -> 0 | O104: -14.65 | P104: 14.65 | Q104: =E104-N104 -> 0 | R104: 14.65 | S104: -14.65
A105: 4014 | B105: Tilskudd driftsavdelingen | E105: =0*-1 -> 0 | G105: 0 | H105: -209400 | I105: 0 | J105: -209400 | K105: =H105-E105 -> -209400 | L105: 0 | M105: -209400 | N105: =0*-1 -> 0 | P105: 0 | Q105: =E105-N105 -> 0 | R105: 0 | S105: 0
A106: 5000 | B106: Administrasjon | E106: =0*-1 -> 0 | F106: 800 | G106: -800 | H106: 0 | I106: 2916.666669 | J106: -2916.666669 | K106: =H106-E106 -> 0 | L106: 2116.666669 | M106: -2116.666669 | N106: =-2000*-1 -> 2000 | O106: 1419 | P106: 581 | Q106: =E106-N106 -> -2000 | R106: -619 | S106: -1381
A107: 5012 | B107: Møte og representasjon | E107: =0*-1 -> 0 | G107: 0 | H107: 0 | I107: 2916.666669 | J107: -2916.666669 | K107: =H107-E107 -> 0 | L107: 2916.666669 | M107: -2916.666669 | N107: =-2000*-1 -> 2000 | O107: 1419 | P107: 581 | Q107: =E107-N107 -> -2000 | R107: -1419 | S107: -581
A108: 5013 | B108: Regnskap | E108: =0*-1 -> 0 | F108: 800 | G108: -800 | J108: 0 | K108: =H108-E108 -> 0 | L108: -800 | M108: 800 | N108: =0*-1 -> 0 | P108: 0 | Q108: =E108-N108 -> 0 | R108: 800 | S108: -800
A109: 4 | B109: Anlegg | E109: =-433606.93*-1 -> 433606.93 | F109: 1224253.07 | G109: -790646.14 | H109: 1788335 | I109: 1198667 | J109: 589668 | K109: =H109-E109 -> 1354728.07 | L109: -25586.07 | M109: 1380314.14 | N109: =-566130.5*-1 -> 566130.5 | O109: 1148542.59 | P109: -582412.09 | Q109: =E109-N109 -> -132523.57 | R109: 75710.48 | S109: -208234.05
A110: 1000 | B110: Aktivitet | E110: =0*-1 -> 0 | F110: 25000 | G110: -25000 | J110: 0 | K110: =H110-E110 -> 0 | L110: -25000 | M110: 25000 | N110: =0*-1 -> 0 | O110: 3575 | P110: -3575 | Q110: =E110-N110 -> 0 | R110: 21425 | S110: -21425
A111: 1003 | B111: Tilskudd fond og stiftelser | E111: =0*-1 -> 0 | G111: 0 | J111: 0 | K111: =H111-E111 -> 0 | L111: 0 | M111: 0 | N111: =0*-1 -> 0 | O111: 3575 | P111: -3575 | Q111: =E111-N111 -> 0 | R111: -3575 | S111: 3575
A112: 1007 | B112: Utstyr lagene/ gruppene | E112: =0*-1 -> 0 | G112: 0 | J112: 0 | K112: =H112-E112 -> 0 | L112: 0 | M112: 0 | N112: =0*-1 -> 0 | P112: 0 | Q112: =E112-N112 -> 0 | R112: 0 | S112: 0
A113: 1017 | B113: Bøter | E113: =0*-1 -> 0 | F113: 25000 | G113: -25000 | J113: 0 | K113: =H113-E113 -> 0 | L113: -25000 | M113: 25000 | N113: =0*-1 -> 0 | P113: 0 | Q113: =E113-N113 -> 0 | R113: 25000 | S113: -25000
A114: 2000 | B114: Kompetanse | E114: =0*-1 -> 0 | F114: 1362.5 | G114: -1362.5 | J114: 0 | K114: =H114-E114 -> 0 | L114: -1362.5 | M114: 1362.5 | N114: =0*-1 -> 0 | P114: 0 | Q114: =E114-N114 -> 0 | R114: 1362.5 | S114: -1362.5
A115: 2007 | B115: Kursing ansatte | E115: =0*-1 -> 0 | F115: 1362.5 | G115: -1362.5 | J115: 0 | K115: =H115-E115 -> 0 | L115: -1362.5 | M115: 1362.5 | N115: =0*-1 -> 0 | P115: 0 | Q115: =E115-N115 -> 0 | R115: 1362.5 | S115: -1362.5
A116: 3000 | B116: Arrangement | E116: =-600*-1 -> 600 | F116: 2000 | G116: -1400 | J116: 0 | K116: =H116-E116 -> -600 | L116: -2000 | M116: 1400 | N116: =0*-1 -> 0 | O116: 0 | P116: 0 | Q116: =E116-N116 -> 600 | R116: 2000 | S116: -1400
A117: 3009 | B117: Elitekamper innebandy | E117: =-600*-1 -> 600 | G117: 600 | J117: 0 | K117: =H117-E117 -> -600 | L117: 0 | M117: -600 | N117: =0*-1 -> 0 | P117: 0 | Q117: =E117-N117 -> 600 | R117: 0 | S117: 600
A118: 3013 | B118: Cup/ stevner/ ritt/ samlinger | E118: =0*-1 -> 0 | F118: 2000 | G118: -2000 | J118: 0 | K118: =H118-E118 -> 0 | L118: -2000 | M118: 2000 | N118: =0*-1 -> 0 | P118: 0 | Q118: =E118-N118 -> 0 | R118: 2000 | S118: -2000
A119: 3022 | B119: Stjernesommer | E119: =0*-1 -> 0 | G119: 0 | J119: 0 | K119: =H119-E119 -> 0 | L119: 0 | M119: 0 | N119: =0*-1 -> 0 | O119: 0 | P119: 0 | Q119: =E119-N119 -> 0 | R119: 0 | S119: 0
A120: 4000 | B120: Anlegg | E120: =-420731.93*-1 -> 420731.93 | F120: 647436.87 | G120: -226704.94 | H120: 1788335 | I120: 602167 | J120: 1186168 | K120: =H120-E120 -> 1367603.07 | L120: -45269.87 | M120: 1412872.94 | N120: =-566130.5*-1 -> 566130.5 | O120: 553999.02 | P120: 12131.48 | Q120: =E120-N120 -> -145398.57 | R120: 93437.85 | S120: -238836.42
A121: 4003 | B121: Kiosk | E121: =-197599.93*-1 -> 197599.93 | F121: 76494.33 | G121: 121105.6 | H121: 175000 | I121: 140000 | J121: 35000 | K121: =H121-E121 -> -22599.93 | L121: 63505.67 | M121: -86105.6 | N121: =-353563*-1 -> 353563 | O121: 153573.35 | P121: 199989.65 | Q121: =E121-N121 -> -155963.07 | R121: -77079.02 | S121: -78884.05
A122: 4004 | B122: Bjølsenhallen | E122: =0*-1 -> 0 | F122: 61081.22 | G122: -61081.22 | H122: 140000 | I122: 72416 | J122: 67584 | K122: =H122-E122 -> 140000 | L122: 11334.78 | M122: 128665.22 | N122: =0*-1 -> 0 | O122: 49959.63 | P122: -49959.63 | Q122: =E122-N122 -> 0 | R122: 11121.59 | S122: -11121.59
A123: 4006 | B123: Bjølsen kunstgress vinter | E123: =0*-1 -> 0 | F123: 64562.5 | G123: -64562.5 | H123: 200000 | I123: 161666 | J123: 38334 | K123: =H123-E123 -> 200000 | L123: 97103.5 | M123: 102896.5 | N123: =0*-1 -> 0 | O123: 59155 | P123: -59155 | Q123: =E123-N123 -> 0 | R123: 5407.5 | S123: -5407.5
A124: 4008 | B124: Voldsløkka kunstis | E124: =-45378*-1 -> 45378 | F124: 63177.45 | G124: -17799.45 | H124: 100000 | I124: 15000 | J124: 85000 | K124: =H124-E124 -> 54622 | L124: -48177.45 | M124: 102799.45 | N124: =0*-1 -> 0 | O124: 40054.3 | P124: -40054.3 | Q124: =E124-N124 -> 45378 | R124: 23123.15 | S124: 22254.85
A125: 4013 | B125: Klubbhuset | E125: =-177754*-1 -> 177754 | F125: 286390.83 | G125: -108636.83 | H125: 233335 | I125: 154750 | J125: 78585 | K125: =H125-E125 -> 55581 | L125: -131640.83 | M125: 187221.83 | N125: =-90447.5*-1 -> 90447.5 | O125: 157420.57 | P125: -66973.07 | Q125: =E125-N125 -> 87306.5 | R125: 128970.26 | S125: -41663.76
A126: 4014 | B126: Tilskudd driftsavdelingen | E126: =0*-1 -> 0 | F126: 10800 | G126: -10800 | H126: 940000 | I126: 0 | J126: 940000 | K126: =H126-E126 -> 940000 | L126: -10800 | M126: 950800 | N126: =0*-1 -> 0 | O126: 0 | P126: 0 | Q126: =E126-N126 -> 0 | R126: 10800 | S126: -10800
A127: 4015 | B127: Driftsmatriell og utstyr | E127: =0*-1 -> 0 | F127: 76534.24 | G127: -76534.24 | H127: 0 | I127: 58335 | J127: -58335 | K127: =H127-E127 -> 0 | L127: -18199.24 | M127: 18199.24 | N127: =-100440*-1 -> 100440 | O127: 52229.21 | P127: 48210.79 | Q127: =E127-N127 -> -100440 | R127: 24305.03 | S127: -124745.03
A128: 4016 | B128: Svermen | E128: =0*-1 -> 0 | F128: 8396.3 | G128: -8396.3 | J128: 0 | K128: =H128-E128 -> 0 | L128: -8396.3 | M128: 8396.3 | N128: =-21680*-1 -> 21680 | O128: 41606.96 | P128: -19926.96 | Q128: =E128-N128 -> -21680 | R128: -33210.66 | S128: 11530.66
A129: 5000 | B129: Administrasjon | E129: =-12275*-1 -> 12275 | F129: 548453.7 | G129: -536178.7 | H129: 0 | I129: 596500 | J129: -596500 | K129: =H129-E129 -> -12275 | L129: 48046.3 | M129: -60321.3 | N129: =0*-1 -> 0 | O129: 590968.57 | P129: -590968.57 | Q129: =E129-N129 -> 12275 | R129: -42514.87 | S129: 54789.87
A130: 5004 | B130: Tilskudd bydel Sagene | E130: =-10000*-1 -> 10000 | G130: 10000 | J130: 0 | K130: =H130-E130 -> -10000 | L130: 0 | M130: -10000 | N130: =0*-1 -> 0 | P130: 0 | Q130: =E130-N130 -> 10000 | R130: 0 | S130: 10000
A131: 5007 | B131: Supporterklubb | E131: =-2275*-1 -> 2275 | G131: 2275 | J131: 0 | K131: =H131-E131 -> -2275 | L131: 0 | M131: -2275 | N131: =0*-1 -> 0 | O131: 29000 | P131: -29000 | Q131: =E131-N131 -> 2275 | R131: -29000 | S131: 31275
A132: 5009 | B132: Drift av kontoret | E132: =0*-1 -> 0 | F132: 185 | G132: -185 | J132: 0 | K132: =H132-E132 -> 0 | L132: -185 | M132: 185 | N132: =0*-1 -> 0 | P132: 0 | Q132: =E132-N132 -> 0 | R132: 185 | S132: -185
A133: 5018 | B133: Betalingsløsninger | E133: =0*-1 -> 0 | G133: 0 | J133: 0 | K133: =H133-E133 -> 0 | L133: 0 | M133: 0 | N133: =0*-1 -> 0 | O133: 6.29 | P133: -6.29 | Q133: =E133-N133 -> 0 | R133: -6.29 | S133: 6.29
A134: 5021 | B134: Driftsleder | E134: =0*-1 -> 0 | F134: 361533.18 | G134: -361533.18 | H134: 0 | I134: 364000 | J134: -364000 | K134: =H134-E134 -> 0 | L134: 2466.82 | M134: -2466.82 | N134: =0*-1 -> 0 | O134: 318504.89 | P134: -318504.89 | Q134: =E134-N134 -> 0 | R134: 43028.29 | S134: -43028.29
A135: 5022 | B135: Driftspersonell fast | E135: =0*-1 -> 0 | F135: 175041.87 | G135: -175041.87 | H135: 0 | I135: 195000 | J135: -195000 | K135: =H135-E135 -> 0 | L135: 19958.13 | M135: -19958.13 | N135: =0*-1 -> 0 | O135: 212903.01 | P135: -212903.01 | Q135: =E135-N135 -> 0 | R135: -37861.14 | S135: 37861.14
A136: 5023 | B136: Driftspersonell tilkalling | E136: =0*-1 -> 0 | F136: 11693.65 | G136: -11693.65 | H136: 0 | I136: 37500 | J136: -37500 | K136: =H136-E136 -> 0 | L136: 25806.35 | M136: -25806.35 | N136: =0*-1 -> 0 | O136: 30554.38 | P136: -30554.38 | Q136: =E136-N136 -> 0 | R136: -18860.73 | S136: 18860.73
A137: 5 | B137: Bandy | E137: =-533435*-1 -> 533435 | F137: 57315.84 | G137: 476119.16 | H137: -326326 | I137: 36500 | J137: -362826 | K137: =H137-E137 -> -859761 | L137: -20815.84 | M137: -838945.16 | N137: =-560482.66*-1 -> 560482.66 | O137: 72958.2 | P137: 487524.46 | Q137: =E137-N137 -> -27047.66 | R137: -15642.36 | S137: -11405.3
A138: 100 | B138: Lagskasser | E138: =0*-1 -> 0 | G138: 0 | J138: 0 | K138: =H138-E138 -> 0 | L138: 0 | M138: 0 | N138: =-5610*-1 -> 5610 | O138: 98.36 | P138: 5511.64 | Q138: =E138-N138 -> -5610 | R138: -98.36 | S138: -5511.64
A139: 401 | B139: A-lag Bandy menn | E139: =0*-1 -> 0 | G139: 0 | J139: 0 | K139: =H139-E139 -> 0 | L139: 0 | M139: 0 | N139: =-5610*-1 -> 5610 | O139: 98.36 | P139: 5511.64 | Q139: =E139-N139 -> -5610 | R139: -98.36 | S139: -5511.64
A140: 1000 | B140: Aktivitet | E140: =-24300*-1 -> 24300 | F140: 2331.64 | G140: 21968.36 | H140: 5000 | I140: 27500 | J140: -22500 | K140: =H140-E140 -> -19300 | L140: 25168.36 | M140: -44468.36 | N140: =-30518*-1 -> 30518 | O140: 22754.01 | P140: 7763.99 | Q140: =E140-N140 -> -6218 | R140: -20422.37 | S140: 14204.37
A141: 1001 | B141: Treningsavgift | E141: =-2400*-1 -> 2400 | F141: 65.06 | G141: 2334.94 | J141: 0 | K141: =H141-E141 -> -2400 | L141: -65.06 | M141: -2334.94 | N141: =12000*-1 -> -12000 | O141: 1006.85 | P141: -13006.85 | Q141: =E141-N141 -> 14400 | R141: -941.79 | S141: 15341.79
A142: 1002 | B142: LAM- midler | E142: =0*-1 -> 0 | G142: 0 | J142: 0 | K142: =H142-E142 -> 0 | L142: 0 | M142: 0 | N142: =-34815*-1 -> 34815 | P142: 34815 | Q142: =E142-N142 -> -34815 | R142: 0 | S142: -34815
A143: 1003 | B143: Tilskudd fond og stiftelser | E143: =0*-1 -> 0 | G143: 0 | J143: 0 | K143: =H143-E143 -> 0 | L143: 0 | M143: 0 | N143: =0*-1 -> 0 | O143: 625 | P143: -625 | Q143: =E143-N143 -> 0 | R143: -625 | S143: 625
A144: 1005 | B144: Dugnad | E144: =0*-1 -> 0 | G144: 0 | H144: 5000 | I144: 0 | J144: 5000 | K144: =H144-E144 -> 5000 | L144: 0 | M144: 5000 | N144: =0*-1 -> 0 | P144: 0 | Q144: =E144-N144 -> 0 | R144: 0 | S144: 0
A145: 1006 | B145: Trenere lagene/gruppene | E145: =-20000*-1 -> 20000 | G145: 20000 | H145: 0 | I145: 10000 | J145: -10000 | K145: =H145-E145 -> -20000 | L145: 10000 | M145: -30000 | N145: =0*-1 -> 0 | P145: 0 | Q145: =E145-N145 -> 20000 | R145: 0 | S145: 20000
A146: 1007 | B146: Utstyr lagene/ gruppene | E146: =-1900*-1 -> 1900 | F146: 33.25 | G146: 1866.75 | H146: 0 | I146: 10000 | J146: -10000 | K146: =H146-E146 -> -1900 | L146: 9966.75 | M146: -11866.75 | N146: =0*-1 -> 0 | O146: 799 | P146: -799 | Q146: =E146-N146 -> 1900 | R146: -765.75 | S146: 2665.75
A147: 1010 | B147: Serieavgifter, lagavgifter | E147: =0*-1 -> 0 | G147: 0 | H147: 0 | I147: 2500 | J147: -2500 | K147: =H147-E147 -> 0 | L147: 2500 | M147: -2500 | N147: =-7703*-1 -> 7703 | P147: 7703 | Q147: =E147-N147 -> -7703 | R147: 0 | S147: -7703
A148: 1011 | B148: Cuper, stevner, turneringer | E148: =0*-1 -> 0 | G148: 0 | J148: 0 | K148: =H148-E148 -> 0 | L148: 0 | M148: 0 | N148: =0*-1 -> 0 | O148: 8307.94 | P148: -8307.94 | Q148: =E148-N148 -> 0 | R148: -8307.94 | S148: 8307.94
A149: 1012 | B149: Kontingenter/ medlemskap | E149: =0*-1 -> 0 | F149: 833.33 | G149: -833.33 | J149: 0 | K149: =H149-E149 -> 0 | L149: -833.33 | M149: 833.33 | N149: =0*-1 -> 0 | O149: 683 | P149: -683 | Q149: =E149-N149 -> 0 | R149: 150.33 | S149: -150.33
A150: 1016 | B150: Dommere | E150: =0*-1 -> 0 | G150: 0 | H150: 0 | I150: 2500 | J150: -2500 | K150: =H150-E150 -> 0 | L150: 2500 | M150: -2500 | N150: =0*-1 -> 0 | O150: 7265.22 | P150: -7265.22 | Q150: =E150-N150 -> 0 | R150: -7265.22 | S150: 7265.22
A151: 1019 | B151: Sosial aktivitet | E151: =0*-1 -> 0 | G151: 0 | H151: 0 | I151: 2500 | J151: -2500 | K151: =H151-E151 -> 0 | L151: 2500 | M151: -2500 | N151: =0*-1 -> 0 | O151: 4067 | P151: -4067 | Q151: =E151-N151 -> 0 | R151: -4067 | S151: 4067
A152: 1020 | B152: Premier og gaver | E152: =0*-1 -> 0 | F152: 1400 | G152: -1400 | J152: 0 | K152: =H152-E152 -> 0 | L152: -1400 | M152: 1400 | N152: =0*-1 -> 0 | P152: 0 | Q152: =E152-N152 -> 0 | R152: 1400 | S152: -1400
A153: 3000 | B153: Arrangement | E153: =0*-1 -> 0 | F153: 27521.3 | G153: -27521.3 | H153: 0 | I153: 4500 | J153: -4500 | K153: =H153-E153 -> 0 | L153: -23021.3 | M153: 23021.3 | N153: =-55031.66*-1 -> 55031.66 | O153: 23713.06 | P153: 31318.6 | Q153: =E153-N153 -> -55031.66 | R153: 3808.24 | S153: -58839.9
A154: 3002 | B154: Åpen dag | E154: =0*-1 -> 0 | G154: 0 | J154: 0 | K154: =H154-E154 -> 0 | L154: 0 | M154: 0 | N154: =0*-1 -> 0 | O154: 2738.4 | P154: -2738.4 | Q154: =E154-N154 -> 0 | R154: -2738.4 | S154: 2738.4
A155: 3004 | B155: Storbytiltak | E155: =0*-1 -> 0 | F155: 27521.3 | G155: -27521.3 | J155: 0 | K155: =H155-E155 -> 0 | L155: -27521.3 | M155: 27521.3 | N155: =-15000*-1 -> 15000 | O155: 1198.05 | P155: 13801.95 | Q155: =E155-N155 -> -15000 | R155: 26323.25 | S155: -41323.25
A156: 3013 | B156: Cup/ stevner/ ritt/ samlinger | E156: =0*-1 -> 0 | G156: 0 | J156: 0 | K156: =H156-E156 -> 0 | L156: 0 | M156: 0 | N156: =-40031.66*-1 -> 40031.66 | O156: 19776.61 | P156: 20255.05 | Q156: =E156-N156 -> -40031.66 | R156: -19776.61 | S156: -20255.05
A157: 3020 | B157: Sosial aktivitet/ banketter. | E157: =0*-1 -> 0 | G157: 0 | H157: 0 | I157: 4500 | J157: -4500 | K157: =H157-E157 -> 0 | L157: 4500 | M157: -4500 | N157: =0*-1 -> 0 | P157: 0 | Q157: =E157-N157 -> 0 | R157: 0 | S157: 0
A158: 4000 | B158: Anlegg | E158: =-509135*-1 -> 509135 | F158: 2583.6 | G158: 506551.4 | H158: -331326 | I158: 4500 | J158: -335826 | K158: =H158-E158 -> -840461 | L158: 1916.4 | M158: -842377.4 | N158: =-469323*-1 -> 469323 | O158: 650.38 | P158: 468672.62 | Q158: =E158-N158 -> 39812 | R158: 1933.22 | S158: 37878.78
A159: 4003 | B159: Kiosk | E159: =-33765*-1 -> 33765 | F159: 933.6 | G159: 32831.4 | H159: 15000 | I159: 4500 | J159: 10500 | K159: =H159-E159 -> -18765 | L159: 3566.4 | M159: -22331.4 | N159: =-4565*-1 -> 4565 | O159: 79.88 | P159: 4485.12 | Q159: =E159-N159 -> 29200 | R159: 853.72 | S159: 28346.28
A160: 4004 | B160: Bjølsenhallen | E160: =0*-1 -> 0 | G160: 0 | J160: 0 | K160: =H160-E160 -> 0 | L160: 0 | M160: 0 | N160: =0*-1 -> 0 | O160: 0 | P160: 0 | Q160: =E160-N160 -> 0 | R160: 0 | S160: 0
A161: 4008 | B161: Voldsløkka kunstis | E161: =-475370*-1 -> 475370 | F161: 1650 | G161: 473720 | H161: 458674 | I161: 0 | J161: 458674 | K161: =H161-E161 -> -16696 | L161: -1650 | M161: -15046 | N161: =-464758*-1 -> 464758 | P161: 464758 | Q161: =E161-N161 -> 10612 | R161: 1650 | S161: 8962
A162: 4013 | B162: Klubbhuset | E162: =0*-1 -> 0 | G162: 0 | J162: 0 | K162: =H162-E162 -> 0 | L162: 0 | M162: 0 | N162: =0*-1 -> 0 | O162: 570.5 | P162: -570.5 | Q162: =E162-N162 -> 0 | R162: -570.5 | S162: 570.5
A163: 4014 | B163: Tilskudd driftsavdelingen | E163: =0*-1 -> 0 | G163: 0 | H163: -805000 | I163: 0 | J163: -805000 | K163: =H163-E163 -> -805000 | L163: 0 | M163: -805000 | N163: =0*-1 -> 0 | P163: 0 | Q163: =E163-N163 -> 0 | R163: 0 | S163: 0
A164: 4016 | B164: Svermen | E164: =0*-1 -> 0 | G164: 0 | J164: 0 | K164: =H164-E164 -> 0 | L164: 0 | M164: 0 | N164: =0*-1 -> 0 | P164: 0 | Q164: =E164-N164 -> 0 | R164: 0 | S164: 0
A165: 5000 | B165: Administrasjon | E165: =0*-1 -> 0 | F165: 24879.3 | G165: -24879.3 | J165: 0 | K165: =H165-E165 -> 0 | L165: -24879.3 | M165: 24879.3 | N165: =0*-1 -> 0 | O165: 25742.39 | P165: -25742.39 | Q165: =E165-N165 -> 0 | R165: -863.09 | S165: 863.09
A166: 5012 | B166: Møte og representasjon | E166: =0*-1 -> 0 | G166: 0 | J166: 0 | K166: =H166-E166 -> 0 | L166: 0 | M166: 0 | N166: =0*-1 -> 0 | O166: 660 | P166: -660 | Q166: =E166-N166 -> 0 | R166: -660 | S166: 660
A167: 5018 | B167: Betalingsløsninger | E167: =0*-1 -> 0 | G167: 0 | J167: 0 | K167: =H167-E167 -> 0 | L167: 0 | M167: 0 | N167: =0*-1 -> 0 | O167: 203.09 | P167: -203.09 | Q167: =E167-N167 -> 0 | R167: -203.09 | S167: 203.09
A168: 5022 | B168: Driftspersonell fast | E168: =0*-1 -> 0 | F168: 24879.3 | G168: -24879.3 | J168: 0 | K168: =H168-E168 -> 0 | L168: -24879.3 | M168: 24879.3 | N168: =0*-1 -> 0 | O168: 24879.3 | P168: -24879.3 | Q168: =E168-N168 -> 0 | R168: 0 | S168: 0
A169: 6 | B169: Landhockey/hockey | E169: =-25132*-1 -> 25132 | F169: 944.33 | G169: 24187.67 | H169: 32226 | I169: 31300 | J169: 926 | K169: =H169-E169 -> 7094 | L169: 30355.67 | M169: -23261.67 | N169: =-49047*-1 -> 49047 | O169: 8953.27 | P169: 40093.73 | Q169: =E169-N169 -> -23915 | R169: -8008.94 | S169: -15906.06
A170: 1000 | B170: Aktivitet | E170: =-15773*-1 -> 15773 | F170: 944.33 | G170: 14828.67 | H170: 41900 | I170: 31300 | J170: 10600 | K170: =H170-E170 -> 26127 | L170: 30355.67 | M170: -4228.67 | N170: =-27962*-1 -> 27962 | O170: 8773.27 | P170: 19188.73 | Q170: =E170-N170 -> -12189 | R170: -7828.94 | S170: -4360.06
A171: 1001 | B171: Treningsavgift | E171: =-5773*-1 -> 5773 | F171: 110.99 | G171: 5662.01 | H171: 31900 | I171: 8800 | J171: 23100 | K171: =H171-E171 -> 26127 | L171: 8689.01 | M171: 17437.99 | N171: =-10700*-1 -> 10700 | O171: 233.28 | P171: 10466.72 | Q171: =E171-N171 -> -4927 | R171: -122.29 | S171: -4804.71
A172: 1002 | B172: LAM- midler | E172: =0*-1 -> 0 | G172: 0 | J172: 0 | K172: =H172-E172 -> 0 | L172: 0 | M172: 0 | N172: =-17262*-1 -> 17262 | P172: 17262 | Q172: =E172-N172 -> -17262 | R172: 0 | S172: -17262
A173: 1005 | B173: Dugnad | E173: =0*-1 -> 0 | G173: 0 | H173: 10000 | I173: 0 | J173: 10000 | K173: =H173-E173 -> 10000 | L173: 0 | M173: 10000 | N173: =0*-1 -> 0 | P173: 0 | Q173: =E173-N173 -> 0 | R173: 0 | S173: 0
A174: 1006 | B174: Trenere lagene/gruppene | E174: =-10000*-1 -> 10000 | G174: 10000 | H174: 0 | I174: 8000 | J174: -8000 | K174: =H174-E174 -> -10000 | L174: 8000 | M174: -18000 | N174: =0*-1 -> 0 | P174: 0 | Q174: =E174-N174 -> 10000 | R174: 0 | S174: 10000
A175: 1007 | B175: Utstyr lagene/ gruppene | E175: =0*-1 -> 0 | G175: 0 | H175: 0 | I175: 2500 | J175: -2500 | K175: =H175-E175 -> 0 | L175: 2500 | M175: -2500 | N175: =0*-1 -> 0 | O175: 3761.99 | P175: -3761.99 | Q175: =E175-N175 -> 0 | R175: -3761.99 | S175: 3761.99
A176: 1008 | B176: Utstyr trenere og lagledere | E176: =0*-1 -> 0 | G176: 0 | H176: 0 | I176: 1000 | J176: -1000 | K176: =H176-E176 -> 0 | L176: 1000 | M176: -1000 | N176: =0*-1 -> 0 | P176: 0 | Q176: =E176-N176 -> 0 | R176: 0 | S176: 0
A177: 1010 | B177: Serieavgifter, lagavgifter | E177: =0*-1 -> 0 | G177: 0 | H177: 0 | I177: 5000 | J177: -5000 | K177: =H177-E177 -> 0 | L177: 5000 | M177: -5000 | N177: =0*-1 -> 0 | P177: 0 | Q177: =E177-N177 -> 0 | R177: 0 | S177: 0
A178: 1012 | B178: Kontingenter/ medlemskap | E178: =0*-1 -> 0 | F178: 833.34 | G178: -833.34 | J178: 0 | K178: =H178-E178 -> 0 | L178: -833.34 | M178: 833.34 | N178: =0*-1 -> 0 | O178: 683 | P178: -683 | Q178: =E178-N178 -> 0 | R178: 150.34 | S178: -150.34
A179: 1014 | B179: Lisenser/ forsikringer | E179: =0*-1 -> 0 | G179: 0 | J179: 0 | K179: =H179-E179 -> 0 | L179: 0 | M179: 0 | N179: =0*-1 -> 0 | O179: 895 | P179: -895 | Q179: =E179-N179 -> 0 | R179: -895 | S179: 895
A180: 1016 | B180: Dommere | E180: =0*-1 -> 0 | G180: 0 | H180: 0 | I180: 6000 | J180: -6000 | K180: =H180-E180 -> 0 | L180: 6000 | M180: -6000 | N180: =0*-1 -> 0 | O180: 3200 | P180: -3200 | Q180: =E180-N180 -> 0 | R180: -3200 | S180: 3200
A181: 3000 | B181: Arrangement | E181: =0*-1 -> 0 | G181: 0 | J181: 0 | K181: =H181-E181 -> 0 | L181: 0 | M181: 0 | N181: =-15000*-1 -> 15000 | P181: 15000 | Q181: =E181-N181 -> -15000 | R181: 0 | S181: -15000
A182: 3004 | B182: Storbytiltak | E182: =0*-1 -> 0 | G182: 0 | J182: 0 | K182: =H182-E182 -> 0 | L182: 0 | M182: 0 | N182: =-15000*-1 -> 15000 | P182: 15000 | Q182: =E182-N182 -> -15000 | R182: 0 | S182: -15000
A183: 4000 | B183: Anlegg | E183: =-9359*-1 -> 9359 | G183: 9359 | H183: -9674 | I183: 0 | J183: -9674 | K183: =H183-E183 -> -19033 | L183: 0 | M183: -19033 | N183: =-6085*-1 -> 6085 | P183: 6085 | Q183: =E183-N183 -> 3274 | R183: 0 | S183: 3274
A184: 4010 | B184: Voldsløkka landhockeybane | E184: =-9359*-1 -> 9359 | G184: 9359 | H184: 9126 | I184: 0 | J184: 9126 | K184: =H184-E184 -> -233 | L184: 0 | M184: -233 | N184: =-6085*-1 -> 6085 | P184: 6085 | Q184: =E184-N184 -> 3274 | R184: 0 | S184: 3274
A185: 4013 | B185: Klubbhuset | E185: =0*-1 -> 0 | G185: 0 | H185: -18800 | I185: 0 | J185: -18800 | K185: =H185-E185 -> -18800 | L185: 0 | M185: -18800 | N185: =0*-1 -> 0 | P185: 0 | Q185: =E185-N185 -> 0 | R185: 0 | S185: 0
A186: 5000 | B186: Administrasjon | E186: =0*-1 -> 0 | G186: 0 | J186: 0 | K186: =H186-E186 -> 0 | L186: 0 | M186: 0 | N186: =0*-1 -> 0 | O186: 180 | P186: -180 | Q186: =E186-N186 -> 0 | R186: -180 | S186: 180
A187: 5012 | B187: Møte og representasjon | E187: =0*-1 -> 0 | G187: 0 | J187: 0 | K187: =H187-E187 -> 0 | L187: 0 | M187: 0 | N187: =0*-1 -> 0 | O187: 180 | P187: -180 | Q187: =E187-N187 -> 0 | R187: -180 | S187: 180
A188: 7 | B188: Fotball senior | E188: =-93330*-1 -> 93330 | F188: -17754.75 | G188: 111084.75 | H188: 329555 | I188: 304813.6667 | J188: 24741.33333 | K188: =H188-E188 -> 236225 | L188: 322568.4167 | M188: -86343.41667 | N188: =-114350*-1 -> 114350 | O188: 231170.17 | P188: -116820.17 | Q188: =E188-N188 -> -21020 | R188: -248924.92 | S188: 227904.92
A189: 100 | B189: Lagskasser | E189: =0*-1 -> 0 | F189: -20500 | G189: 20500 | J189: 0 | K189: =H189-E189 -> 0 | L189: 20500 | M189: -20500 | N189: =-6000*-1 -> 6000 | O189: 3625.66 | P189: 2374.34 | Q189: =E189-N189 -> -6000 | R189: -24125.66 | S189: 18125.66
A190: 301 | B190: Futsal | E190: =0*-1 -> 0 | F190: -20500 | G190: 20500 | J190: 0 | K190: =H190-E190 -> 0 | L190: 20500 | M190: -20500 | N190: =0*-1 -> 0 | O190: 1820.66 | P190: -1820.66 | Q190: =E190-N190 -> 0 | R190: -22320.66 | S190: 22320.66
A191: 328 | B191: Senior herrer fotball 4 7er | E191: =0*-1 -> 0 | G191: 0 | J191: 0 | K191: =H191-E191 -> 0 | L191: 0 | M191: 0 | N191: =-6000*-1 -> 6000 | O191: 1805 | P191: 4195 | Q191: =E191-N191 -> -6000 | R191: -1805 | S191: -4195
A192: 1000 | B192: Aktivitet | E192: =-93330*-1 -> 93330 | F192: 2745.25 | G192: 90584.75 | H192: 329555 | I192: 291813.6667 | J192: 37741.33333 | K192: =H192-E192 -> 236225 | L192: 289068.4167 | M192: -52843.41667 | N192: =-108350*-1 -> 108350 | O192: 226744.51 | P192: -118394.51 | Q192: =E192-N192 -> -15020 | R192: -223999.26 | S192: 208979.26
A193: 1001 | B193: Treningsavgift | E193: =-93330*-1 -> 93330 | F193: 1772.25 | G193: 91557.75 | H193: 314555 | I193: 14000 | J193: 300555 | K193: =H193-E193 -> 221225 | L193: 12227.75 | M193: 208997.25 | N193: =-108350*-1 -> 108350 | O193: 2629.11 | P193: 105720.89 | Q193: =E193-N193 -> -15020 | R193: -856.86 | S193: -14163.14
A194: 1006 | B194: Trenere lagene/gruppene | E194: =0*-1 -> 0 | G194: 0 | H194: 0 | I194: 24247 | J194: -24247 | K194: =H194-E194 -> 0 | L194: 24247 | M194: -24247 | N194: =0*-1 -> 0 | P194: 0 | Q194: =E194-N194 -> 0 | R194: 0 | S194: 0
A195: 1007 | B195: Utstyr lagene/ gruppene | E195: =0*-1 -> 0 | F195: 973 | G195: -973 | H195: 0 | I195: 30000 | J195: -30000 | K195: =H195-E195 -> 0 | L195: 29027 | M195: -29027 | N195: =0*-1 -> 0 | O195: 16094 | P195: -16094 | Q195: =E195-N195 -> 0 | R195: -15121 | S195: 15121
A196: 1008 | B196: Utstyr trenere og lagledere | E196: =0*-1 -> 0 | G196: 0 | J196: 0 | K196: =H196-E196 -> 0 | L196: 0 | M196: 0 | N196: =0*-1 -> 0 | O196: 1584 | P196: -1584 | Q196: =E196-N196 -> 0 | R196: -1584 | S196: 1584
A197: 1010 | B197: Serieavgifter, lagavgifter | E197: =0*-1 -> 0 | G197: 0 | H197: 0 | I197: 18750 | J197: -18750 | K197: =H197-E197 -> 0 | L197: 18750 | M197: -18750 | N197: =0*-1 -> 0 | O197: 151600 | P197: -151600 | Q197: =E197-N197 -> 0 | R197: -151600 | S197: 151600
A198: 1011 | B198: Cuper, stevner, turneringer | E198: =0*-1 -> 0 | G198: 0 | J198: 0 | K198: =H198-E198 -> 0 | L198: 0 | M198: 0 | N198: =0*-1 -> 0 | O198: 15000 | P198: -15000 | Q198: =E198-N198 -> 0 | R198: -15000 | S198: 15000
A199: 1013 | B199: Overganger | E199: =0*-1 -> 0 | G199: 0 | H199: 15000 | I199: 15000 | J199: 0 | K199: =H199-E199 -> 15000 | L199: 15000 | M199: 0 | N199: =0*-1 -> 0 | P199: 0 | Q199: =E199-N199 -> 0 | R199: 0 | S199: 0
A200: 1014 | B200: Lisenser/ forsikringer | E200: =0*-1 -> 0 | G200: 0 | H200: 0 | I200: 94400 | J200: -94400 | K200: =H200-E200 -> 0 | L200: 94400 | M200: -94400 | N200: =0*-1 -> 0 | P200: 0 | Q200: =E200-N200 -> 0 | R200: 0 | S200: 0
A201: 1016 | B201: Dommere | E201: =0*-1 -> 0 | G201: 0 | H201: 0 | I201: 37500 | J201: -37500 | K201: =H201-E201 -> 0 | L201: 37500 | M201: -37500 | N201: =0*-1 -> 0 | O201: 9837.4 | P201: -9837.4 | Q201: =E201-N201 -> 0 | R201: -9837.4 | S201: 9837.4
... 215 more rows
